fUSD/lending_fUSD_20260319
["ID","MTS","AMOUNT","RATE_DAILY","PERIOD"]
[408582197,1773904249304,-5000.0,0.000152,2]
[408582198,1773904249314,-5000.0,0.000152,2]
[408582199,1773904249324,-5000.0,0.000152,2]
[408582200,1773904249334,-151.0,0.000152,2]
[408582201,1773904249344,-151.0,0.000152,2]
[408582202,1773904249417,-151.0,0.000152,2]
[408582203,1773904249429,-151.0,0.000152,2]
[408582204,1773904249439,-151.0,0.000152,2]
[408582205,1773904249449,-151.0,0.000152,2]
[408582206,1773904249459,-225.106884,0.000152,2]
[408582207,1773904249469,-151.0,0.000152,2]
[408582208,1773904249479,-225.455864,0.000152,2]
[408582209,1773904249489,-151.0,0.000152,2]
[408582210,1773904249499,-151.0,0.000152,2]
[408582211,1773904249509,-225.106884,0.000152,2]
[408582212,1773904249519,-151.0,0.000152,2]
[408582213,1773904249529,-151.0,0.000152,2]
[408582214,1773904249539,-225.106884,0.000152,2]
[408582215,1773904249549,-151.0,0.000152,2]
[408582216,1773904249559,-151.0,0.000152,2]
[408582217,1773904249569,-225.106884,0.000152,2]
[408582218,1773904249579,-278.698356,0.000152,2]
[408582219,1773904249589,-151.0,0.000152,2]
[408582220,1773904249599,-151.0,0.000152,2]
[408582221,1773904249609,-278.698356,0.000152,2]
[408582222,1773904249619,-151.0,0.000152,2]
[408582223,1773904249629,-278.698356,0.000152,2]
[408582224,1773904249638,-151.0,0.000152,2]
[408582225,1773904249648,-278.698356,0.000152,2]
[408582226,1773904249658,-151.0,0.000152,2]
[408582227,1773904249668,-151.0,0.000152,2]
[408582228,1773904249677,-514.779081,0.000152,2]
[408582229,1773904249687,-1293.543751,0.000152,2]
[408582230,1773904249696,-514.779081,0.000152,2]
[408582231,1773904249705,-1293.543751,0.000152,2]
[408582232,1773904249715,-514.779081,0.000152,2]
[408582233,1773904249725,-1293.543751,0.000152,2]
[408582234,1773904249735,-514.779081,0.000152,2]
[408582235,1773904249744,-1293.543751,0.000152,2]
[408582236,1773904249754,-151.0,0.000152,2]
[408582237,1773904249764,-151.0,0.000152,2]
[408582238,1773904249774,-151.0,0.000152,2]
[408582239,1773904249784,-254.50235,0.000152,2]
[408582240,1773904249794,-254.50235,0.000152,2]
[408582241,1773904249805,-254.50235,0.000152,2]
[408582242,1773904249815,-254.50235,0.000152,2]
[408582243,1773904249826,-946.660142,0.000152,2]
[408582244,1773904249838,-946.660142,0.000152,2]
[408582245,1773904249848,-690.254152,0.000152,2]
[408582246,1773904249859,-690.254152,0.000152,2]
[408582247,1773904249869,-946.660142,0.000152,2]
[408582248,1773904249879,-946.660142,0.000152,2]
[408582249,1773904249889,-690.254152,0.000152,2]
[408582250,1773904249900,-690.254152,0.000152,2]
[408582251,1773904249911,-279.754336,0.000152,2]
[408582252,1773904249921,-151.0,0.000152,2]
[408582253,1773904249932,-279.754336,0.000152,2]
[408582254,1773904249942,-151.0,0.000152,2]
[408582255,1773904249952,-252.912659,0.000152,2]
[408582256,1773904249964,-279.754336,0.000152,2]
[408582257,1773904249973,-544.326923,0.000152,2]
[408582258,1773904249983,-646.195236,0.000152,2]
[408582259,1773904249993,-151.0,0.000152,2]
[408582260,1773904250003,-252.912659,0.000152,2]
[408582261,1773904250013,-544.326923,0.000152,2]
[408582262,1773904250022,-279.754336,0.000152,2]
[408582263,1773904250032,-646.195236,0.000152,2]
[408582264,1773904250043,-151.0,0.000152,2]
[408582265,1773904250053,-252.912659,0.000152,2]
[408582266,1773904250064,-544.326923,0.000152,2]
[408582267,1773904250074,-646.195236,0.000152,2]
[408582268,1773904250084,-5262.820055,0.000152,2]
[408582269,1773904250094,-252.912659,0.000152,2]
[408582270,1773904250106,-544.326923,0.000152,2]
[408582271,1773904250116,-646.195236,0.000152,2]
[408582272,1773904250127,-316.962142,0.000152,2]
[408582273,1773904250141,-316.962142,0.000152,2]
[408582274,1773904250151,-316.962142,0.000152,2]
[408582275,1773904250161,-5262.820055,0.000152,2]
[408582276,1773904250171,-151.0,0.000152,2]
[408582277,1773904250182,-5262.820055,0.000152,2]
[408582278,1773904250192,-316.962142,0.000152,2]
[408582279,1773904250203,-151.0,0.000152,2]
[408582280,1773904250216,-5262.820055,0.000152,2]
[408582281,1773904250226,-151.0,0.000152,2]
[408582282,1773904250236,-2420.00275,0.000152,2]
[408582283,1773904250246,-151.0,0.000152,2]
[408582284,1773904250256,-151.0,0.000152,2]
[408582285,1773904250266,-2420.00275,0.000152,2]
[408582286,1773904250276,-504.420128,0.000152,2]
[408582287,1773904250286,-151.0,0.000152,2]
[408582288,1773904250296,-2420.00275,0.000152,2]
[408582289,1773904250307,-504.420128,0.000152,2]
[408582290,1773904250317,-151.0,0.000152,2]
[408582291,1773904250327,-2420.00275,0.000152,2]
[408582292,1773904250337,-504.420128,0.000152,2]
[408582293,1773904250347,-151.0,0.000152,2]
[408582294,1773904250357,-504.420128,0.000152,2]
[408582295,1773904250367,-151.0,0.000152,2]
[408582296,1773904250377,-151.0,0.000152,2]
[408582297,1773904250388,-727.402123,0.000152,2]
[408582298,1773904250399,-151.0,0.000152,2]
[408582299,1773904250409,-727.402123,0.000152,2]
[408582300,1773904250419,-151.0,0.000152,2]
[408582301,1773904250428,-727.402123,0.000152,2]
[408582302,1773904250438,-153.801132,0.000152,2]
[408582303,1773904250447,-151.0,0.000152,2]
[408582304,1773904250457,-727.402123,0.000152,2]
[408582305,1773904250467,-151.0,0.000152,2]
[408582306,1773904250476,-151.0,0.000152,2]
[408582307,1773904250486,-5000.0,0.000152,2]
[408582308,1773904250496,-3873.084931,0.000152,2]
[408582309,1773904250505,-151.0,0.000152,2]
[408582310,1773904250515,-151.0,0.000152,2]
[408582311,1773904250525,-151.0,0.000152,2]
[408582312,1773904250535,-157.223091,0.000152,2]
[408582313,1773904250545,-151.0,0.000152,2]
[408582314,1773904250555,-157.223091,0.000152,2]
[408582315,1773904250565,-157.223091,0.000152,2]
[408582316,1773904250574,-151.0,0.000152,2]
[408582317,1773904250584,-157.223091,0.000152,2]
[408582318,1773904250593,-163.401354,0.000152,2]
[408582319,1773904250603,-864.407632,0.000152,2]
[408582320,1773904250613,-240.935014,0.000152,2]
[408582321,1773904250623,-151.0,0.000152,2]
[408582322,1773904250633,-591.831781,0.000152,2]
[408582323,1773904250642,-864.407632,0.000152,2]
[408582324,1773904250653,-240.935014,0.000152,2]
[408582325,1773904250663,-151.0,0.000152,2]
[408582326,1773904250673,-591.831781,0.000152,2]
[408582327,1773904250683,-864.407632,0.000152,2]
[408582328,1773904250693,-240.935014,0.000152,2]
[408582329,1773904250703,-864.407632,0.000152,2]
[408582330,1773904250713,-591.831781,0.000152,2]
[408582331,1773904250724,-240.935014,0.000152,2]
[408582332,1773904250734,-591.831781,0.000152,2]
[408582333,1773904250744,-334.03453,0.000152,2]
[408582334,1773904250755,-151.0,0.000152,2]
[408582335,1773904250765,-334.03453,0.000152,2]
[408582336,1773904250776,-334.03453,0.000152,2]
[408582337,1773904250786,-151.0,0.000152,2]
[408582338,1773904250796,-151.0,0.000152,2]
[408582339,1773904250807,-151.0,0.000152,2]
[408582340,1773904250817,-334.03453,0.000152,2]
[408582341,1773904250827,-351.558585,0.000152,2]
[408582342,1773904250837,-1002.546318,0.000152,2]
[408582343,1773904250851,-151.0,0.000152,2]
[408582344,1773904250862,-351.558585,0.000152,2]
[408582345,1773904250873,-1002.546318,0.000152,2]
[408582346,1773904250883,-230.441519,0.000152,2]
[408582347,1773904250893,-351.558585,0.000152,2]
[408582348,1773904250903,-1002.546318,0.000152,2]
[408582349,1773904250913,-971.057393,0.000152,2]
[408582350,1773904250923,-351.558585,0.000152,2]
[408582351,1773904250932,-1002.546318,0.000152,2]
[408582352,1773904250942,-971.057393,0.000152,2]
[408582353,1773904250952,-831.959583,0.000152,2]
[408582354,1773904250961,-151.0,0.000152,2]
[408582355,1773904250972,-971.057393,0.000152,2]
[408582356,1773904250981,-831.959583,0.000152,2]
[408582357,1773904250990,-151.0,0.000152,2]
[408582358,1773904251000,-971.057393,0.000152,2]
[408582359,1773904251009,-296.871777,0.000152,2]
[408582360,1773904251020,-831.959583,0.000152,2]
[408582361,1773904251030,-296.871777,0.000152,2]
[408582362,1773904251040,-831.959583,0.000152,2]
[408582363,1773904251049,-151.0,0.000152,2]
[408582364,1773904251059,-296.871777,0.000152,2]
[408582365,1773904251070,-1316.758124,0.000152,2]
[408582366,1773904251079,-806.822539,0.000152,2]
[408582367,1773904251089,-151.0,0.000152,2]
[408582368,1773904251099,-296.871777,0.000152,2]
[408582369,1773904251108,-1316.758124,0.000152,2]
[408582370,1773904251119,-151.0,0.000152,2]
[408582371,1773904251129,-151.0,0.000152,2]
[408582372,1773904251142,-806.822539,0.000152,2]
[408582373,1773904251153,-500.0,0.000152,2]
[408582374,1773904251163,-1316.758124,0.000152,2]
[408582375,1773904251172,-806.822539,0.000152,2]
[408582376,1773904251183,-151.0,0.000152,2]
[408582377,1773904251193,-1316.758124,0.000152,2]
[408582378,1773904251203,-806.822539,0.000152,2]
[408582379,1773904251214,-190.050238,0.000152,2]
[408582380,1773904251226,-190.050238,0.000152,2]
[408582381,1773904251237,-500.0,0.000152,2]
[408582382,1773904251247,-190.050238,0.000152,2]
[408582383,1773904251256,-500.0,0.000152,2]
[408582384,1773904251267,-190.050238,0.000152,2]
[408582385,1773904251276,-500.0,0.000152,2]
[408582386,1773904251286,-151.0,0.000152,2]
[408582387,1773904251296,-205.063631,0.000152,2]
[408582388,1773904251306,-188.860457,0.000152,2]
[408582389,1773904251316,-205.063631,0.000152,2]
[408582390,1773904251327,-205.063631,0.000152,2]
[408582391,1773904251336,-1041.92918,0.000152,2]
[408582392,1773904251346,-205.063631,0.000152,2]
[408582393,1773904251357,-1041.92918,0.000152,2]
[408582394,1773904251367,-1041.92918,0.000152,2]
[408582395,1773904251377,-151.0,0.000152,2]
[408582396,1773904251386,-1041.92918,0.000152,2]
[408582397,1773904251396,-983.841649,0.000152,2]
[408582398,1773904251410,-221.302246,0.000152,2]
[408582399,1773904251420,-983.841649,0.000152,2]
[408582400,1773904251430,-221.302246,0.000152,2]
[408582401,1773904251440,-983.841649,0.000152,2]
[408582402,1773904251449,-221.302246,0.000152,2]
[408582403,1773904251459,-983.841649,0.000152,2]
[408582404,1773904251469,-221.302246,0.000152,2]
[408582405,1773904251478,-151.0,0.000152,2]
[408582406,1773904251488,-151.0,0.000152,2]
[408582407,1773904251498,-151.0,0.000152,2]
[408582408,1773904251508,-151.0,0.000152,2]
[408582409,1773904251518,-170.4851,0.000152,2]
[408582410,1773904251528,-151.0,0.000152,2]
[408582411,1773904251538,-151.0,0.000152,2]
[408582412,1773904251547,-151.0,0.000152,2]
[408582413,1773904251558,-151.0,0.000152,2]
[408582414,1773904251567,-151.0,0.000152,2]
[408582415,1773904251577,-151.0,0.000152,2]
[408582416,1773904251587,-151.0,0.000152,2]
[408582417,1773904251597,-151.0,0.000152,2]
[408582418,1773904251607,-455.526607,0.000152,2]
[408582419,1773904251616,-151.0,0.000152,2]
[408582420,1773904251626,-3178.349364,0.000152,2]
[408582421,1773904251635,-151.0,0.000152,2]
[408582422,1773904251645,-455.526607,0.000152,2]
[408582423,1773904251658,-3178.349364,0.000152,2]
[408582424,1773904251668,-151.0,0.000152,2]
[408582425,1773904251677,-455.526607,0.000152,2]
[408582426,1773904251687,-3178.349364,0.000152,2]
[408582427,1773904251696,-455.526607,0.000152,2]
[408582428,1773904251705,-3178.349364,0.000152,2]
[408582429,1773904251716,-151.0,0.000152,2]
[408582430,1773904251725,-151.0,0.000152,2]
[408582431,1773904251735,-151.0,0.000152,2]
[408582432,1773904251745,-1349.424833,0.000152,2]
[408582433,1773904251754,-210.110521,0.000152,2]
[408582434,1773904251764,-1349.424833,0.000152,2]
[408582435,1773904251774,-210.110521,0.000152,2]
[408582436,1773904251785,-178.05707,0.000152,2]
[408582437,1773904251795,-1349.424833,0.000152,2]
[408582438,1773904251805,-210.110521,0.000152,2]
[408582439,1773904251815,-178.05707,0.000152,2]
[408582440,1773904251824,-1349.424833,0.000152,2]
[408582441,1773904251834,-210.110521,0.000152,2]
[408582442,1773904251848,-178.05707,0.000152,2]
[408582443,1773904251858,-178.05707,0.000152,2]
[408582444,1773904251868,-151.0,0.000152,2]
[408582445,1773904251877,-151.0,0.000152,2]
[408582446,1773904251887,-363.219552,0.000152,2]
[408582447,1773904251896,-151.0,0.000152,2]
[408582448,1773904251908,-363.219552,0.000152,2]
[408582449,1773904251919,-151.0,0.000152,2]
[408582450,1773904251928,-363.219552,0.000152,2]
[408582451,1773904251938,-363.219552,0.000152,2]
[408582452,1773904251948,-151.0,0.000152,2]
[408582453,1773904251957,-497.978559,0.000152,2]
[408582454,1773904251967,-497.978559,0.000152,2]
[408582455,1773904251976,-497.978559,0.000152,2]
[408582456,1773904251987,-497.978559,0.000152,2]
[408582457,1773904251998,-260.655179,0.000152,2]
[408582458,1773904252008,-260.655179,0.000152,2]
[408582459,1773904252017,-260.655179,0.000152,2]
[408582460,1773904252027,-260.655179,0.000152,2]
[408582461,1773904252036,-151.0,0.000152,2]
[408582462,1773904252045,-151.0,0.000152,2]
[408582463,1773904252055,-151.0,0.000152,2]
[408582464,1773904252065,-151.0,0.000152,2]
[408582465,1773904252074,-151.0,0.000152,2]
[408582466,1773904252085,-160.405846,0.000152,2]
[408582467,1773904252094,-850.0,0.0001522,2]
[408582468,1773904252104,-850.0,0.0001522,2]
[408582469,1773904252114,-850.0,0.0001522,2]
[408582470,1773904252124,-850.0,0.0001522,2]
[408582471,1773904252134,-850.0,0.0001522,2]
[408582472,1773904252143,-850.0,0.0001522,2]
[408582473,1773904252158,-850.0,0.0001522,2]
[408582474,1773904252167,-850.0,0.0001522,2]
[408582475,1773904252177,-850.0,0.0001522,2]
[408582476,1773904252186,-408.0,0.0001522,2]
[408582477,1773904252196,-369.0,0.00015223,2]
[408582478,1773904252205,-150.0,0.00015227,2]
[408582479,1773904252214,-150.0,0.00015227,2]
[408582480,1773904252225,-150.0,0.00015227,2]
[408582481,1773904252236,-150.0,0.00015227,2]
[408582482,1773904252245,-150.0,0.00015227,2]
[408582483,1773904252255,-230.0,0.00015227,2]
[408582484,1773904252265,-2000.0,0.00015233,2]
[408582485,1773904252275,-1000.0,0.00015235,2]
[408582486,1773904252285,-1000.0,0.00015243,2]
[408582487,1773904252295,-193.60696256,0.00015247,2]
[408582488,1773904252305,-2402.0,0.0001525,2]
[408582489,1773904252315,-1567.0,0.0001525,2]
[408582490,1773904252325,-1000.0,0.00015274,7]
[408582491,1773904252335,-464.72,0.00015287,2]
[408582492,1773904252345,-152.0,0.00015309,7]
[408582493,1773904252355,-1065.89204711,0.00015309,2]
[408582494,1773904252365,-1000.0,0.00015311,2]
[408582495,1773904252375,-173.0,0.00015315,2]
[408582496,1773904252385,-150.0,0.00015315,2]
[408582497,1773904252395,-219.836,0.00015315,2]
[408582498,1773904252406,-162.351,0.00015315,2]
[408582499,1773904252416,-250.0,0.00015315,2]
[408582500,1773904252426,-150.139,0.00015315,2]
[408582501,1773904252436,-193.143,0.00015315,2]
[408582502,1773904252446,-165.725,0.00015315,2]
[408582503,1773904252456,-214.469,0.00015315,2]
[408582504,1773904252466,-250.0,0.00015315,2]
[408582505,1773904252476,-238.201,0.00015315,2]
[408582506,1773904252486,-179.0,0.00015315,2]
[408582507,1773904252496,-627.184,0.00015315,2]
[408582508,1773904252506,-3512.0,0.00015315,2]
[408582509,1773904252515,-1350.033,0.00015315,2]
[408582510,1773904252525,-1044.0,0.00015315,2]
[408582511,1773904252535,-1261.0,0.00015315,2]
[408582512,1773904252544,-150.369,0.00015315,2]
[408582513,1773904252554,-150.0,0.00015326,2]
[408582514,1773904252564,-2000.0,0.00015333,2]
[408582515,1773904252574,-510.67405678,0.00015336,2]
[408582516,1773904252584,-464.72,0.00015342,2]
[408582517,1773904252593,-2000.0,0.00015342,2]
[408582518,1773904252603,-2000.0,0.00015342,2]
[408582519,1773904252612,-2000.0,0.00015342,2]
[408582520,1773904252626,-2000.0,0.00015342,2]
[408582521,1773904252635,-676.1614452,0.00015342,2]
[408582522,1773904252645,-2000.0,0.00015342,2]
[408582523,1773904252656,-2000.0,0.00015342,2]
[408582524,1773904252666,-2000.0,0.00015342,2]
[408582525,1773904252676,-1499.94158246,0.00015342,2]
[408582526,1773904252686,-2000.0,0.00015342,2]
[408582527,1773904252696,-1461.15092032,0.00015342,2]
[408582528,1773904252707,-2000.0,0.00015342,2]
[408582529,1773904252717,-2074.83203376,0.00015342,2]
[408582530,1773904252727,-2000.0,0.00015342,2]
[408582531,1773904252736,-2000.0,0.00015342,2]
[408582532,1773904252747,-2000.0,0.00015342,2]
[408582533,1773904252756,-1050.20986564,0.00015342,2]
[408582534,1773904252767,-1534.68838991,0.00015342,2]
[408582535,1773904252778,-1887.45023446,0.00015342,2]
[408582536,1773904252787,-2000.0,0.00015342,2]
[408582537,1773904252798,-1919.75064279,0.00015342,2]
[408582538,1773904252808,-2000.0,0.00015342,2]
[408582539,1773904252818,-1000.0,0.00015343,2]
[408582540,1773904252828,-469.0,0.00015356,2]
[408582541,1773904252838,-2402.0,0.0001536,2]
[408582542,1773904252848,-272.72,0.00015376,2]
[408582543,1773904252859,-882.2401512,0.00015391,2]
[408582544,1773904252868,-1000.0,0.00015392,2]
[408582545,1773904252880,-213.33,0.00015396,2]
[408582546,1773904252890,-464.72,0.00015396,2]
[408582547,1773904252900,-1047.24314573,0.00015424,2]
[408582548,1773904252911,-1000.0,0.00015425,2]
[408582549,1773904252921,-2000.0,0.00015433,2]
[408582550,1773904252931,-150.0,0.00015442,2]
[408582551,1773904252941,-150.0,0.00015445,2]
[408582552,1773904252951,-254.0,0.00015445,2]
[408582553,1773904252962,-152.0,0.00015456,8]
[408582554,1773904252972,-213.33,0.00015459,2]
[408582555,1773904252982,-369.0,0.00015463,2]
[408582556,1773904252992,-2402.0,0.00015465,2]
[408582557,1773904253002,-1000.0,0.00015465,2]
[408582558,1773904253012,-882.52,0.00015468,2]
[408582559,1773904253023,-1000.0,0.00015483,2]
[408582560,1773904253033,-510.67405678,0.00015486,2]
[408582561,1773904253042,-469.0,0.00015493,2]
[408582562,1773904253052,-6453.0,0.00015528,2]
[408582563,1773904253063,-2129.0,0.00015533,2]
[408582564,1773904253072,-2000.0,0.00015533,2]
[408582565,1773904253082,-1000.0,0.00015545,2]
[408582566,1773904253092,-150.0,0.00015586,2]
[408582567,1773904253102,-369.0,0.00015599,2]
[408582568,1773904253112,-2173.0,0.000156,2]
[408582569,1773904253122,-200.0,0.000156,5]
[408582570,1773904253131,-1000.0,0.00015602,2]
[408582571,1773904253143,-152.0,0.00015603,9]
[408582572,1773904253157,-882.2401512,0.0001561,2]
[408582573,1773904253167,-400.0,0.00015616,2]
[408582574,1773904253177,-436.211883,0.00015616,2]
[408582575,1773904253187,-150.0,0.00015617,2]
[408582576,1773904253196,-469.0,0.0001563,2]
[408582577,1773904253206,-2000.0,0.00015633,2]
[408582578,1773904253216,-3922.94171058,0.0001568,2]
[408582579,1773904253226,-1567.0,0.0001568,2]
[408582580,1773904253236,-1109.0,0.0001568,2]
[408582581,1773904253246,-200.0,0.000157,5]
[408582582,1773904253256,-150.0,0.00015722,2]
[408582583,1773904253266,-2000.0,0.00015733,2]
[408582584,1773904253276,-1000.0,0.0001574,2]
[408582585,1773904253286,-1000.0,0.00015747,2]
[408582586,1773904253296,-152.0,0.0001575,10]
[408582587,1773904253306,-2874.03,0.00015753,2]
[408582588,1773904253316,-369.0,0.00015754,2]
[408582589,1773904253326,-150.0,0.00015762,2]
[408582590,1773904253335,-1000.0,0.00015762,2]
[408582591,1773904253345,-469.0,0.00015767,2]
[408582592,1773904253355,-150.0,0.00015767,2]
[408582593,1773904253365,-2173.0,0.00015777,2]
[408582594,1773904253375,-1000.0,0.00015798,2]
[408582595,1773904253385,-1119.95,0.000158,2]
[408582596,1773904253397,-3665.66,0.000158,2]
[408582597,1773904253410,-200.0,0.000158,5]
[408582598,1773904253420,-501.0,0.00015802,4]
[408582599,1773904253430,-150.0,0.00015803,2]
[408582600,1773904253440,-150.0,0.00015804,2]
[408582601,1773904253451,-369.0,0.00015824,2]
[408582602,1773904253461,-882.2401512,0.0001583,2]
[408582603,1773904253471,-2000.0,0.00015833,2]
[408582604,1773904253481,-908.823477,0.0001584,2]
[408582605,1773904253490,-908.823477,0.0001584,2]
[408582606,1773904253500,-908.823477,0.0001584,2]
[408582607,1773904253511,-151.0,0.0001584,2]
[408582608,1773904253522,-908.823477,0.0001584,2]
[408582609,1773904253532,-151.0,0.0001584,2]
[408582610,1773904253541,-151.0,0.0001584,2]
[408582611,1773904253551,-151.0,0.0001584,2]
[408582612,1773904253562,-151.0,0.0001584,2]
[408582613,1773904253572,-151.0,0.0001584,2]
[408582614,1773904253582,-151.0,0.0001584,2]
[408582615,1773904253592,-242.77687,0.0001584,2]
[408582616,1773904253602,-151.0,0.0001584,2]
[408582617,1773904253612,-151.0,0.0001584,2]
[408582618,1773904253622,-1484.718008,0.0001584,2]
[408582619,1773904253631,-151.0,0.0001584,2]
[408582620,1773904253641,-151.0,0.0001584,2]
[408582621,1773904253653,-1484.718008,0.0001584,2]
[408582622,1773904253663,-228.405162,0.0001584,2]
[408582623,1773904253673,-1484.718008,0.0001584,2]
[408582624,1773904253683,-151.0,0.0001584,2]
[408582625,1773904253693,-172.340861,0.0001584,2]
[408582626,1773904253702,-228.405162,0.0001584,2]
[408582627,1773904253712,-1484.718008,0.0001584,2]
[408582628,1773904253722,-172.340861,0.0001584,2]
[408582629,1773904253731,-228.405162,0.0001584,2]
[408582630,1773904253739,-172.340861,0.0001584,2]
[408582631,1773904253749,-228.405162,0.0001584,2]
[408582632,1773904253758,-172.340861,0.0001584,2]
[408582633,1773904253767,-151.0,0.0001584,2]
[408582634,1773904253775,-151.0,0.0001584,2]
[408582635,1773904253785,-151.0,0.0001584,2]
[408582636,1773904253794,-1585.436337,0.0001584,2]
[408582637,1773904253804,-1585.436337,0.0001584,2]
[408582638,1773904253815,-1585.436337,0.0001584,2]
[408582639,1773904253824,-1585.436337,0.0001584,2]
[408582640,1773904253834,-1261.80267,0.0001584,2]
[408582641,1773904253843,-166.293149,0.0001584,2]
[408582642,1773904253853,-1261.80267,0.0001584,2]
[408582643,1773904253863,-166.293149,0.0001584,2]
[408582644,1773904253872,-1261.80267,0.0001584,2]
[408582645,1773904253882,-166.293149,0.0001584,2]
[408582646,1773904253891,-1261.80267,0.0001584,2]
[408582647,1773904253900,-151.0,0.0001584,2]
[408582648,1773904253910,-166.293149,0.0001584,2]
[408582649,1773904253920,-151.0,0.0001584,2]
[408582650,1773904253930,-168.185178,0.0001584,2]
[408582651,1773904253940,-151.0,0.0001584,2]
[408582652,1773904253950,-151.0,0.0001584,2]
[408582653,1773904253960,-151.0,0.0001584,2]
[408582654,1773904253970,-499.918076,0.0001584,2]
[408582655,1773904253980,-151.0,0.0001584,2]
[408582656,1773904253990,-499.918076,0.0001584,2]
[408582657,1773904254000,-499.918076,0.0001584,2]
[408582658,1773904254010,-499.918076,0.0001584,2]
[408582659,1773904254020,-388.876166,0.0001584,2]
[408582660,1773904254030,-388.876166,0.0001584,2]
[408582661,1773904254040,-388.876166,0.0001584,2]
[408582662,1773904254050,-151.0,0.0001584,2]
[408582663,1773904254060,-151.0,0.0001584,2]
[408582664,1773904254070,-151.0,0.0001584,2]
[408582665,1773904254080,-388.876166,0.0001584,2]
[408582666,1773904254090,-151.0,0.0001584,2]
[408582667,1773904254100,-151.0,0.0001584,2]
[408582668,1773904254110,-151.0,0.0001584,2]
[408582669,1773904254119,-151.0,0.0001584,2]
[408582670,1773904254129,-151.0,0.0001584,2]
[408582671,1773904254142,-151.0,0.0001584,2]
[408582672,1773904254156,-151.0,0.0001584,2]
[408582673,1773904254166,-202.884032,0.0001584,2]
[408582674,1773904254175,-154.056591,0.0001584,2]
[408582675,1773904254185,-202.884032,0.0001584,2]
[408582676,1773904254195,-154.056591,0.0001584,2]
[408582677,1773904254204,-202.884032,0.0001584,2]
[408582678,1773904254214,-154.056591,0.0001584,2]
[408582679,1773904254222,-202.884032,0.0001584,2]
[408582680,1773904254232,-154.056591,0.0001584,2]
[408582681,1773904254241,-673.760442,0.0001584,2]
[408582682,1773904254251,-218.324419,0.0001584,2]
[408582683,1773904254261,-276.134429,0.0001584,2]
[408582684,1773904254271,-151.0,0.0001584,2]
[408582685,1773904254280,-673.760442,0.0001584,2]
[408582686,1773904254290,-276.134429,0.0001584,2]
[408582687,1773904254299,-218.324419,0.0001584,2]
[408582688,1773904254309,-151.0,0.0001584,2]
[408582689,1773904254319,-673.760442,0.0001584,2]
[408582690,1773904254329,-276.134429,0.0001584,2]
[408582691,1773904254339,-218.324419,0.0001584,2]
[408582692,1773904254349,-151.0,0.0001584,2]
[408582693,1773904254359,-673.760442,0.0001584,2]
[408582694,1773904254369,-276.134429,0.0001584,2]
[408582695,1773904254379,-218.324419,0.0001584,2]
[408582696,1773904254389,-151.0,0.0001584,2]